Cogmind - Beta 16 @@@ ROGUE MODE // 2025.11.20 @ 23:08:16 // Winter2019/RPGLIKE Player: daniels1231 Result: Self-destructed Performance ------------- Evolutions (2) 1000 Regions Visited (6) 1200 Robots Destroyed (16) 80 Value Destroyed (269) 269 Prototype IDs (0) 0 Alien Tech Used (0) 0 Bonus (200) 200 TOTAL SCORE: 2749 Bonus ------- Entered Garrisons 200 Cogmind --------- Core Integrity 48/600 Matter 6/300 Energy 275/275 System Corruption 0% Temperature Cool (0) Movement Flying (197) Ox2 Location -8/Garrison Parts ------- > --- POWER (2) -------- Ion Engine Light Ion Engine > --- PROPULSION (4) --- Flight Unit Flight Unit > --- UTILITY (3) ------ ECM Suite Hacking Suite > --- WEAPON (3) ------- High-powered Shotgun High-powered Shotgun High-powered Shotgun > --- INVENTORY (2) ---- High-powered Shotgun Peak State ------------ > --- POWER ------------ Ion Engine Light Ion Engine > --- PROPULSION ------- Flight Unit Flight Unit > --- UTILITY ---------- ECM Suite Hacking Suite > --- WEAPON ----------- High-powered Shotgun High-powered Shotgun High-powered Shotgun > --- INVENTORY -------- High-powered Shotgun [Rating: 17] Favorites ----------- Power Light Ion Engine Engine Light Ion Engine Propulsion Flight Unit Wheel Wheel Flight Unit Flight Unit Utility ECM Suite Device ECM Suite Hackware Hacking Suite Weapon High-powered Shotgun Energy Gun EM Pulse Gun Ballistic Gun High-powered Shotgun Launcher Grenade Launcher Build | -11 -10 -9 -9 -8 -8 -8 ------- Run | Yrd Mat Mat Min Mat Sto Gar Slots Evolved 8 | 3 . 2 . . 2 1 Power 1 | 1 . . . . . . Propulsion 3 | 1 . . . . 2 . Utility 2 | . . 2 . . . . Weapon 2 | 1 . . . . . 1 Parts Attached 18 | 7 3 1 3 . 3 1 Power 2 | 2 . . . . . . Engine 2 | 2 . . . . . . Core . | . . . . . . . Reactor . | . . . . . . . Propulsion 5 | 2 1 . 2 . . . Treads . | . . . . . . . Leg . | . . . . . . . Wheel 3 | 2 1 . . . . . Hover . | . . . . . . . Flight 2 | . . . 2 . . . Utility 2 | . 1 . . . 1 . Device 1 | . 1 . . . . . Storage . | . . . . . . . Processor . | . . . . . . . Hackware 1 | . . . . . 1 . Protection . | . . . . . . . Artifact . | . . . . . . . Weapon 9 | 3 1 1 1 . 2 1 Energy Gun 4 | 3 . 1 . . . . Energy Cannon . | . . . . . . . Ballistic Gun 3 | . . . . . 2 1 Ballistic Cannon . | . . . . . . . Launcher 2 | . 1 . 1 . . . Special Weapon . | . . . . . . . Impact Weapon . | . . . . . . . Slashing Weapon . | . . . . . . . Piercing Weapon . | . . . . . . . Special Melee Weapon . | . . . . . . . Unidentified Prototypes . | . . . . . . . Parts Lost . | . . . . . . . Power . | . . . . . . . Propulsion . | . . . . . . . Utility . | . . . . . . . Weapon . | . . . . . . . Highest Loss Streak . | . . . . . . . To Critical Strikes . | . . . . . . . Average Backups 1 | . 1 2 2 2 2 1 Power . | . . . . . . . Propulsion . | . . . . . . . Utility . | . . . . . . . Weapon 1 | . 1 2 2 2 2 1 Tool/Special . | . . . . . . . Unused Backups 1 | . . . . . . 1 Power . | . . . . . . . Propulsion . | . . . . . . . Utility . | . . . . . . . Weapon 1 | . . . . . . 1 Tool/Special . | . . . . . . . Average Slot Usage (%) 78 | . 87 78 75 77 70 74 Engine 21 | . 28 22 22 22 18 16 Wheel 13 | . 28 22 15 . . . Flight 7 | . . . 5 22 18 16 Device 8 | . 2 11 11 11 9 8 Hackware 2 | . . . . . 5 8 Energy Gun 9 | . 16 11 11 11 6 . Ballistic Gun 6 | . . . . . 5 24 Launcher 7 | . 11 11 11 11 5 . Peak Build Rating 17 | 6 7 8 9 9 14 17 Average Rating 9 | 4 6 7 8 9 11 16 On Entrance 7 | . 6 7 8 9 9 14 Avg Prop Armor Cover (%) 3 | . 3 3 3 . . . Naked Turns . | . . . . . . . Heaviest Build 19 | 11 15 16 17 17 17 19 Greatest Support 26 | 26 10 10 10 8 8 8 Greatest Overweight (x) 4 | 1 1 1 4 2 2 2 Average Overweight (x) 1 | . . 1 1 2 1 1 Largest Inventory Capacity 2 | 2 2 2 2 2 2 2 Average Capacity 1 | . 2 2 2 2 2 2 Most Carried 2 | 2 2 2 2 2 2 2 Average Carried 1 | . 1 1 2 2 1 1 Final Capacity 2 | 2 2 2 2 2 2 2 Final Carried 2 | 1 2 2 2 2 2 1 Class Distribution -------------------- 70% | Mutant 19% | Hacker-Gunner 10% | Hacker-Mutant Dominant Class ---------------- Mutant | -10/Materials Mutant | -9/Materials Mutant | -9/Mines Mutant | -8/Materials Hacker-Mutant | -8/Storage Hacker-Gunner | -8/Garrison Resources | -11 -10 -9 -9 -8 -8 -8 ----------- Run | Yrd Mat Mat Min Mat Sto Gar Matter Collected 364 | 262 . 32 70 . . . Remotely . | . . . . . . . Salvage Created 255 | 82 18 152 3 . . . Parts 21 | 2 5 7 7 . . . Haulers Intercepted . | . . . . . . . Recyclers Shooed 3 | . . 2 1 . . . Parts Field Recycled . | . . . . . . . Retrieved Matter . | . . . . . . . Parts Self-Destructed . | . . . . . . . Prevented . | . . . . . . . Parts Restored . | . . . . . . . Kills | -11 -10 -9 -9 -8 -8 -8 ------- Run | Yrd Mat Mat Min Mat Sto Gar Combat Hostiles Destroyed 10 | . 3 3 4 . . . Guns 2 | . 1 1 . . . . AOE 8 | . 2 2 4 . . . Classes Destroyed 7 | 1 2 4 . . . . Builder 1 | . . 1 . . . . Recycler 1 | 1 . . . . . . Operator 1 | . . 1 . . . . Watcher 3 | . 1 2 . . . . Swarmer 7 | . 3 . 4 . . . Grunt 1 | . . 1 . . . . Sentry 2 | . . 2 . . . . Best Kill Streak 4 | 1 4 3 4 . . . Combat Bots Only 4 | . 3 2 4 . . . Max Kills in Single Turn 3 | 1 2 2 3 . . . Gunslinging . | . . . . . . . Exploded 3 | . 1 1 3 . . . Melee . | . . . . . . . Uniques/NPCs Destroyed . | . . . . . . . Combat | -11 -10 -9 -9 -8 -8 -8 -------- Run | Yrd Mat Mat Min Mat Sto Gar Hostile Shots Fired 47 | . 5 20 4 . . 18 Missed 11 | . 2 5 . . . 4 Hits 36 | . 3 15 4 . . 14 Projectile 36 | . 3 15 4 . . 14 Critical Strikes 2 | . . 2 . . . . Damage Taken 680 | . 66 360 49 . . 205 Core 552 | . 58 291 39 . . 164 Absorbed by Shields . | . . . . . . . Redirected to Core 453 | . 32 244 36 . . 141 Core Remaining (%) 75 | 100 90 . 35 . . . Volleys Fired 27 | 2 6 14 2 . . 3 Largest 3 | 2 2 2 2 . . 3 Hottest 80 | 80 70 75 78 . . 75 Shots Fired 57 | 4 12 28 4 . . 9 Gun 35 | 4 6 14 2 . . 9 Cannon . | . . . . . . . Launcher 22 | . 6 14 2 . . . Special . | . . . . . . . Kinetic 9 | . . . . . . 9 Thermal 2 | 2 . . . . . . Explosive 22 | . 6 14 2 . . . Electromagnetic 24 | 2 6 14 2 . . . Robot Hit Streak 7 | 3 7 3 1 . . 3 Robot Miss Streak 6 | 1 1 2 2 . . 6 Penetration Max . | . . . . . . . Secondary Targets . | . . . . . . . Shots Hit Robots 34 | 3 7 18 1 . . 5 Core Hits 23 | 2 6 11 3 . . 1 Critical Kills . | . . . . . . . Critical Parts Destroyed . | . . . . . . . Critical Strikes . | . . . . . . . Melee Attacks . | . . . . . . . Impact . | . . . . . . . Slashing . | . . . . . . . Piercing . | . . . . . . . Sneak Attacks . | . . . . . . . Combat Hostiles . | . . . . . . . Follow-up Attacks . | . . . . . . . Damage Inflicted 1133 | 35 317 510 208 . . 63 Guns 229 | 35 55 76 . . . 63 Cannons . | . . . . . . . Explosions 904 | . 262 434 208 . . . Melee . | . . . . . . . Ramming . | . . . . . . . Kinetic 63 | . . . . . . 63 Thermal 71 | 10 . 61 . . . . Explosive 843 | . 262 373 208 . . . Electromagnetic 156 | 25 55 76 . . . . Impact . | . . . . . . . Slashing . | . . . . . . . Piercing . | . . . . . . . Highest Corruption 2 | . 2 . . . . . Average Corruption 2 | . 2 . . . . . Corruption Purged . | . . . . . . . Corruption Blocked . | . . . . . . . Overload Shots . | . . . . . . . Overflow Damage 66 | . 11 42 13 . . . Projectiles . | . . . . . . . Explosions 66 | . 11 42 13 . . . Melee . | . . . . . . . Knockbacks . | . . . . . . . Impact . | . . . . . . . Kinetic . | . . . . . . . Secondary . | . . . . . . . Self-Inflicted Damage 141 | . . 132 9 . . . Shots 6 | . . 5 1 . . . Rammed . | . . . . . . . Targets Rammed . | . . . . . . . Kicked . | . . . . . . . Crushed . | . . . . . . . Highest Temperature 327 | 66 72 327 66 . . 108 Average Temperature 94 | 34 26 146 34 . . 56 Received Heat Transfer 108 | . . 108 . . . . Siege Activations . | . . . . . . . Martial Activations . | . . . . . . . Shielding Activations . | . . . . . . . Robots Disrupted . | . . . . . . . Combat Hostiles . | . . . . . . . Robots Corrupted . | . . . . . . . Combat Hostiles . | . . . . . . . Parts Fried . | . . . . . . . Impact Corruptions . | . . . . . . . Robots Melted . | . . . . . . . Combat Hostiles . | . . . . . . . Parts Melted . | . . . . . . . Heat Transferred 125 | 25 . 100 . . . . Parts Sabotaged . | . . . . . . . Parts Stolen . | . . . . . . . Parts Stripped . | . . . . . . . Power Chain Reactions 1 | . . 1 . . . . Alert | -11 -10 -9 -9 -8 -8 -8 ------- Run | Yrd Mat Mat Min Mat Sto Gar Maximum Alert Level . | . . . . . . . Low Security (%) 100 | 100 100 100 100 100 100 100 Level 1 . | . . . . . . . Level 2 . | . . . . . . . Level 3 . | . . . . . . . Level 4 . | . . . . . . . Level 5 . | . . . . . . . High Security . | . . . . . . . Max Security . | . . . . . . . Peak Influence 161 | 5 87 161 148 49 20 . Initial 54 | . . 27 54 49 20 . Average 36 | 1 29 84 104 49 6 . Influence Increases 399 | 5 106 184 104 . . . Destroy 0b10 Robot/C 200 | . 60 60 80 . . . Destroy 0b10 Robot/NC 30 | 5 5 20 . . . . Destroy Leader 56 | . 12 34 10 . . . Successful Hack 7 | . . 7 . . . . Destroy Structure 106 | . 29 63 14 . . . Influence Decreases 399 | 5 40 109 117 79 49 . Entered New Map 234 | . . 39 87 79 29 . Time Decay 165 | 5 40 70 30 . 20 . Squads Dispatched 3 | . 1 2 . . . . Investigation 1 | . . 1 . . . . Extermination . | . . . . . . . Reinforcement 2 | . 1 1 . . . . Assault . | . . . . . . . Garrison . | . . . . . . . Intercept . | . . . . . . . Searches Triggered . | . . . . . . . Construction Impeded 1 | . . 1 . . . . Haulers Reinforced . | . . . . . . . Active Scanning Responses . | . . . . . . . Cargo Convoy Interrupts . | . . . . . . . Stealth | -11 -10 -9 -9 -8 -8 -8 --------- Run | Yrd Mat Mat Min Mat Sto Gar Distress Signals . | . . . . . . . Communications Jammed . | . . . . . . . Distress Signals . | . . . . . . . Times Spotted 16 | . 5 6 4 . . 1 Peak Tracking Total 4 | . 3 3 4 . . 1 Tactical Retreats . | . . . . . . . Traps | -11 -10 -9 -9 -8 -8 -8 ------- Run | Yrd Mat Mat Min Mat Sto Gar Traps Triggered 3 | . 2 . . . . 1 Indirectly . | . . . . . . . Trap Hack Attempts . | . . . . . . . Triggered . | . . . . . . . Disarmed . | . . . . . . . Reprogrammed . | . . . . . . . Reused . | . . . . . . . Traps Extracted . | . . . . . . . Installed . | . . . . . . . Triggered . | . . . . . . . Machines | -11 -10 -9 -9 -8 -8 -8 ---------- Run | Yrd Mat Mat Min Mat Sto Gar Machines Disabled . | . . . . . . . Max in Single Turn . | . . . . . . . Machines Repaired . | . . . . . . . Machines Dismantled . | . . . . . . . Machines Sabotaged . | . . . . . . . Overloaded Fab Kills . | . . . . . . . Hacking | -11 -10 -9 -9 -8 -8 -8 --------- Run | Yrd Mat Mat Min Mat Sto Gar Machines Accessed 3 | . . 1 . . 1 1 Terminals 2 | . . 1 . . . 1 Fabricators . | . . . . . . . Repair Stations . | . . . . . . . Recycling Units . | . . . . . . . Scanalyzers . | . . . . . . . Garrison Access 1 | . . . . . 1 . Total Hacks 10 | . . 5 . . 2 3 Successful 5 | . . 3 . . 1 1 Failed 5 | . . 2 . . 1 2 Catastrophic 2 | . . 1 . . . 1 Database Lockouts . | . . . . . . . Manual 1 | . . . . . . 1 Terminals 8 | . . 5 . . . 3 Fabricators . | . . . . . . . Repair Stations . | . . . . . . . Recycling Units . | . . . . . . . Scanalyzers . | . . . . . . . Garrison Access 2 | . . . . . 2 . Terminal Hacks 4 | . . 3 . . . 1 Record 2 | . . 2 . . . . Emergency Access Points 1 | . . . . . . 1 Transport Status 1 | . . 1 . . . . Fabricator Hacks . | . . . . . . . Repair Station Hacks . | . . . . . . . Recycling Unit Hacks . | . . . . . . . Scanalyzer . | . . . . . . . Garrison Access Hacks 1 | . . . . . 1 . Unlock Access 1 | . . . . . 1 . Unauthorized Hacks . | . . . . . . . Terminals . | . . . . . . . Fabricators . | . . . . . . . Repair Stations . | . . . . . . . Recycling Units . | . . . . . . . Scanalyzers . | . . . . . . . Garrison Access . | . . . . . . . Data Cores Recovered 1 | . . 1 . . . . Used . | . . . . . . . Hacking Detections 3 | . . 1 . . 1 1 Full Trace Events 1 | . . 1 . . . . Feedback Events . | . . . . . . . Feedback Blocked . | . . . . . . . Robot Schematics Acquired . | . . . . . . . Robots Built . | . . . . . . . Authchips . | . . . . . . . Time . | . . . . . . . Total Robot Build Rating . | . . . . . . . Part Schematics Acquired . | . . . . . . . Parts Built . | . . . . . . . Authchips . | . . . . . . . Time . | . . . . . . . Total Part Build Rating . | . . . . . . . Part Studies Acquired . | . . . . . . . Parts Repaired . | . . . . . . . Time . | . . . . . . . Parts Recycled . | . . . . . . . Recycled Matter . | . . . . . . . Retrieved Matter . | . . . . . . . Retrieved Components . | . . . . . . . Parts Scanalyzed . | . . . . . . . Part Schematics Acquired . | . . . . . . . Parts Damaged . | . . . . . . . Bothacking | -11 -10 -9 -9 -8 -8 -8 ------------ Run | Yrd Mat Mat Min Mat Sto Gar Used RIF Installer . | . . . . . . . Robots Hacked . | . . . . . . . Non-combat . | . . . . . . . Combat . | . . . . . . . Robot Hacks Applied . | . . . . . . . Relay Couplers Released . | . . . . . . . Fabnet Peak Effective % . | . . . . . . . Robots Rewired . | . . . . . . . Allies Hacked . | . . . . . . . Hacks Repelled . | . . . . . . . Allies | -11 -10 -9 -9 -8 -8 -8 -------- Run | Yrd Mat Mat Min Mat Sto Gar Total Allies . | . . . . . . . Largest Group . | . . . . . . . Highest-Rated Group . | . . . . . . . Highest-Rated Ally . | . . . . . . . Total Orders . | . . . . . . . Ally Attacks . | . . . . . . . Total Damage . | . . . . . . . Kills . | . . . . . . . Allies Corrupted . | . . . . . . . Allies Melted . | . . . . . . . Intel | -11 -10 -9 -9 -8 -8 -8 ------- Run | Yrd Mat Mat Min Mat Sto Gar Active Infowar (turns) 501 | . 30 153 64 14 86 154 ECM 501 | . 30 153 64 14 86 154 Robot Analysis Total . | . . . . . . . Derelict Logs Recovered . | . . . . . . . Drone Launches . | . . . . . . . Drone Recoveries . | . . . . . . . Exploration | -11 -10 -9 -9 -8 -8 -8 ------------- Run | Yrd Mat Mat Min Mat Sto Gar Turns Passed 703 | 70 162 153 64 14 86 154 Spaces Moved 487 | 63 147 114 42 8 48 65 Core 17 | 17 . . . . . . Treads . | . . . . . . . Legs . | . . . . . . . Wheels 342 | 46 147 114 35 . . . Hover . | . . . . . . . Flight 128 | . . . 7 8 48 65 Fastest Speed 50 | 50 80 95 95 197 117 117 Average Speed 116 | 80 94 95 119 197 162 195 Slowest Speed 365 | 100 95 95 365 197 197 197 Overloaded Moves . | . . . . . . . Propulsion Burnouts . | . . . . . . . Robots Hopped . | . . . . . . . Potential Cave-ins . | . . . . . . . Cave-ins Triggered . | . . . . . . . Exploration Rate (%) 13 | 4 42 14 10 2 8 14 Regions Visited 6 Branch Regions 2 Pre-discovered Areas . | . . . . . . . Known Exits Taken 1 | . . . . . 1 . Unknown Exits Taken 5 | 1 1 1 1 1 . . Scrap Searched 1 | . . . 1 . . . Spaces Dug . | . . . . . . . Terrain Destroyed 128 | . 30 78 20 . . . Melee . | . . . . . . . Projectile . | . . . . . . . AOE 128 | . 30 78 20 . . . Terrain Rammed . | . . . . . . . Walls Destroyed . | . . . . . . . Machines Disabled . | . . . . . . . Actions | -11 -10 -9 -9 -8 -8 -8 --------- Run | Yrd Mat Mat Min Mat Sto Gar Total 564 | 75 157 131 53 7 56 85 Wait . | . . . . . . . Move 481 | 62 146 113 41 7 47 65 Hop . | . . . . . . . Pick Up 5 | 2 . 1 . . 2 . Fast Attach 17 | 7 2 . 4 . 3 1 Attach . | . . . . . . . Detach 1 | . 1 . . . . . Swap 3 | . 1 1 1 . . . Drop 15 | 2 1 2 5 . 4 1 Fire 27 | 2 6 14 2 . . 3 Melee . | . . . . . . . Ram . | . . . . . . . Kick . | . . . . . . . Crush . | . . . . . . . Escape Stasis 15 | . . . . . . 15 Rewire . | . . . . . . . Trap . | . . . . . . . Miscellaneous . | . . . . . . . Route ------- -11/Scrapyard -10/Materials (discovered 2 exits: *Mat / [*Min]) -9/Materials -9/Mines -8/Materials -8/Storage -8/Garrison History --------- Turn | Location | Event 9 | -11/Scrapyard | Discovered new exit (range 15) 9 | -11/Scrapyard | Upgraded with Power slot (x1) 9 | -11/Scrapyard | Upgraded with Propulsion slot (x1) 9 | -11/Scrapyard | Upgraded with Weapon slot (x1) 71 | -11/Scrapyard | Entered Materials 129 | -10/Materials | Discovered new exit (range 16) 214 | -10/Materials | Discovered new exit (range 15) 233 | -10/Materials | Entered another Materials area 235 | -9/Materials | Reached level 2 238 | -9/Materials | Upgraded with Utility slot (x2) 305 | -9/Materials | Build established: Mutant 318 | -9/Materials | Core integrity fell below 50% 374 | -9/Materials | Discovered new exit (range 9) 386 | -9/Materials | Entered Mines 393 | -9/Mines | Received a Rocket Launcher from a helpful Derelict 406 | -9/Mines | Discovered new exit (range 7) 411 | -9/Mines | Reached level 3 450 | -9/Mines | Entered Materials 450 | -8/Materials | Discovered new exit (range 7) 451 | -8/Materials | Core integrity fell below 50% 452 | -8/Materials | Reached level 4 464 | -8/Materials | Entered Storage 474 | -8/Storage | Upgraded with Propulsion slot (x2) 548 | -8/Storage | Identified exit to Garrison 550 | -8/Storage | Entered Garrison 552 | -8/Garrison | Reached level 5 552 | -8/Garrison | Upgraded with Weapon slot (x1) 688 | -8/Garrison | Core integrity fell below 20% 704 | -8/Garrison | Self-destructed Last Messages --------------- 00642_ Field strength at 88. 00643_ Field strength at 82. 00644_ Field strength at 76. 00645_ Field strength at 70. 00646_ Field strength at 64. 00647_ Field strength at 58. 00648_ Field strength at 52. 00649_ Field strength at 46. 00650_ Field strength at 40. 00651_ Field strength at 34. 00652_ Field strength at 28. 00653_ Field strength at 22. 00654_ Field strength at 16. 00655_ Field strength at 10. 00656_ Field strength at 4. 00657_ Stasis field depleted. 00675_ Connecting with Garrison Terminal... 00678_ Penetrated by Slug. 00701_ Slug penetrates Wall. 00704_ Penetrated by Slug. Map ----- +----------------------------------------------------+ | ?????????????????? ???????????????????????????? | | ?????????????????? ???????????????????????????? | | ??????????????????" "???????????????????????????? | | ??????????????????" "???????????????????????????? | | ?????????????#????" "???????????????????????????? | | ?????????????# """" """" #??????????????????????? | | ?????????????# #??????????????????????? | | ????????????????# #?????????????????????????? | | ????????????????## ####?????????????????????????? | | ??# ############# ########?????????????????????? | | ??# #?????????????????????? | | ??# #?????????????????????? | | ???++?####### ######### #?????????????????????? | | ??+?????????# #???????# #?????????????????????? | | ????????????##+##???????# #?????????????????????? | | ????????????????????????# #?????????????????????? | | ????????????????????????+ #?????????????????????? | | ????????????????????????# #?????????????????????? | | ????????????????????????# #?????????????????????? | | ????????????????????????# #?????????????????????? | | ????????????????????????# #???????????????????+?? | | ????????????????????????# #?????????????????????? | | ????????????????????????# #?????????????????????? | | ????????????????????????# #?????????????????????? | | ????????????????????????# #?????????????????????? | | ????????????????????????#@ #????????????????????+? | | ????????????????????????# #?????????????????????? | | ????????????????????????# #?????????????????????? | | ????????????????????????# #?????????????????????? | | ????????????????????????# #?????????###""""#????? | | ????????????????#########h ######## ???? | | ???????????? + ^ ???? | | ???????????? + ^ ???? | | ???????????????############T####### ##?????????? | | ??????????????????????????###????????????????????? | | ?????????????????????????????????????????????????? | | ?????????????????????????????????????????????????? | | ?????????????????????????????????????????????????? | | ?????????????????????????????????????????????????? | | ?????????????????????????????????????????????????? | | ?????????????????????????????????????????????????? | | ?????????????????????????????????????????????????? | | ?????????????????????????????????????????????????? | | ?????????????????????????????????????????????????? | | ????????????????????????????????????+????????????? | | ?????????????????????????????????????????????????? | | ?????????????????????????????????????????????????? | | ?????????????????????+??+???+????????????????????? | | ?????????????????????+??+???????????????????????+? | | ?????????????????????????????????????????????????? | +----------------------------------------------------+ Best States ------------- Heat Dissipation 25 Energy Generation 15 Energy Capacity 275 Matter Stores 292 Matter Capacity 300 Sight Range 16 Robot Scan Range 18 Terrain Scan Density 10 ECM Strength 1 Evasion (%) 50 Offensive Hacking 25 Item Schematics ----------------- None Robot Schematics ------------------ None Fabricated ------------ Nothing Repaired ---------- Nothing Studied --------- None Alien Tech Used ----------------- None Achievements -------------- None Challenges ------------ None RPGLIKE | -11 -10 -9 -9 -8 -8 -8 --------- Run | Yrd Mat Mat Min Mat Sto Gar Levels Raised 4 | . . 1 1 1 . 1 XP Earned 9385 | 3000 350 1985 950 1500 1000 600 XP Spent 9000 | 2450 . 1900 . . 2500 2150 Upgrades 23 | 6 . 4 . . 3 10 Power Slot 1 | 1 . . . . . . Propulsion Slot 3 | 1 . . . . 2 . Utility Slot 2 | . . 2 . . . . Weapon Slot 2 | 1 . . . . . 1 Inventory Capacity 2 | 2 . . . . . . Sensor Range 9 | . . . . . . 9 Hack Attack % 3 | . . 2 . . 1 . KI Damage % 1 | 1 . . . . . . Protomatter Created 26 | . 23 . 3 . . . Protomatter Decayed . | . . . . . . . Game ------ Seed LongswordSigixWartreads Manual? 0 Play Time 00:07:56 Cumulative 15.3 hours Start 2025.11.20 @ 22:55:48 End 2025.11.20 @ 23:08:16 Sessions 3 Manual Loads 0 Difficulty Rogue Special Mode Winter2019/RPGLIKE Game No. 39 Rogue 35 Adventurer 4 Explorer 0 Win Type - Total 0 Types 0/0/0/0/0/0/0/0/0/0 Lore% 4 Gallery% 18 Achievement% 16 Wizard Run 0 Options --------- Layout 2 ASCII 0 Keyboard 0 Movement Arrows Keybinds 1 Fullscreen 2 Font 32/SmallcapsGlow Map View 50x44 Zoom Use 0% Tactical HUD 1 Map Filters NONE Filters NONE Steam 1 RUN: 896629d5-243a-4fe0-b49f-9eb76505da7f